{"text_format":"1","workbook":"xlsx","n_sheets":5,"sheets":["Dataset","Approach 1","Approach 2","Approach 3","Approach 4"],"not_rendered":{"charts":0,"images":0,"macros":1,"external_links":0,"defined_names":0,"comments":0,"pivot_tables":0},"unopened":[],"bounds":{"document_bytes":16777216,"sheet_cells":100000,"rows_first":2000,"rows_last":500,"rows_between":2000,"halvings":0,"cell_chars":16384,"cell_head_chars":4096},"cells_cut":0,"cells_raw":0,"read":"whole","date_system":"1900"}

{"sheet":"Dataset","index":0,"n_rows":13,"n_cols":4,"rows_kept":13,"cut":false,"hidden":false,"merged":[[2,1,2,3]]}
[]
[]
[null,"Points Distribution Table"]
[]
[null,"Name","Class","Points"]
[null,"James",1,95]
[null,"John",2,68]
[null,"Frank",1,78]
[null,"Bell",1,86]
[null,"Rose",3,92]
[null,"Mariska",2,75]
[null,"George",4,62]
[null,"Miller",4,99]

{"sheet":"Approach 1","index":1,"n_rows":18,"n_cols":4,"rows_kept":18,"cut":false,"hidden":false,"merged":[[2,1,2,3]]}
[]
[]
[null,"Points Distribution Table"]
[]
[null,"Name","Class","Points"]
[null,"James",1,95]
[null,"John",2,68]
[null,"Frank",1,78]
[null,"Bell",1,86]
[null,"Rose",3,92]
[null,"Mariska",2,75]
[null,"George",4,62]
[null,"Miller",4,99]
[null,"Miller",4,99]
[null,"Miller",4,99]
[null,"Miller",4,99]
[null,"Miller",4,99]
[null,"Miller",4,99]

{"sheet":"Approach 2","index":2,"n_rows":18,"n_cols":4,"rows_kept":18,"cut":false,"hidden":false,"merged":[[2,1,2,3]]}
[]
[]
[null,"Points Distribution Table"]
[]
[null,"Name","Class","Points"]
[null,"James",1,95]
[null,"John",2,68]
[null,"Frank",1,78]
[null,"Bell",1,86]
[null,"Rose",3,92]
[null,"Mariska",2,75]
[null,"George",4,62]
[null,"Miller",4,99]
[null,"Miller",4,99]
[null,"Miller",4,99]
[null,"Miller",4,99]
[null,"Miller",4,99]
[null,"Miller",4,99]

{"sheet":"Approach 3","index":3,"n_rows":20,"n_cols":9,"rows_kept":20,"cut":false,"hidden":false,"merged":[[2,1,2,5]]}
[]
[]
[null,"Points Distribution Table"]
[]
[null,"Helping","Name","Class","Points","Repeat",null,"Column 2","Repeat 2"]
[null,1,"James",1,95,1,null,1,{"$f":"VLOOKUP(H6,$B$5:$E$13,2)","v":"James"}]
[null,{"$f":"B6+F6","v":2},"John",2,68,2,null,2,{"$f":"VLOOKUP(H7,$B$5:$E$13,2)","v":"John"}]
[null,{"$f":"B7+F7","v":4},"Frank",1,78,1,null,3,"John"]
[null,5,"Bell",1,86,3,null,4,"Frank"]
[null,8,"Rose",3,92,2,null,5,"Bell"]
[null,10,"Mariska",2,75,1,null,6,"Bell"]
[null,11,"George",4,62,2,null,7,"Bell"]
[null,13,"Miller",4,99,3,null,8,"Rose"]
[null,null,null,null,null,null,null,9,"Rose"]
[null,null,null,null,null,null,null,10,"Mariska"]
[null,null,null,null,null,null,null,11,"George"]
[null,null,null,null,null,null,null,12,"George"]
[null,null,null,null,null,null,null,13,"Miller"]
[null,null,null,null,null,null,null,14,"Miller"]
[null,null,null,null,null,null,null,15,"Miller"]

{"sheet":"Approach 4","index":4,"n_rows":20,"n_cols":5,"rows_kept":20,"cut":false,"hidden":false,"merged":[[2,1,2,2]]}
[]
[]
[null,"Points Distribution Table"]
[]
[null,"Name","Repeat",null,"Students"]
[null,"James",1,null,"James"]
[null,"John",2,null,"John"]
[null,"Frank",1,null,"John"]
[null,"Bell",3,null,"Frank"]
[null,"Rose",2,null,"Bell"]
[null,"Mariska",1,null,"Bell"]
[null,"George",2,null,"Bell"]
[null,"Miller",3,null,"Rose"]
[null,null,null,null,"Rose"]
[null,null,null,null,"Mariska"]
[null,null,null,null,"George"]
[null,null,null,null,"George"]
[null,null,null,null,"Miller"]
[null,null,null,null,"Miller"]
[null,null,null,null,"Miller"]